fUST/lending_fUST_20250726
["ID","MTS","AMOUNT","RATE_DAILY","PERIOD"]
[375111709,1753531847353,-758.82,0.00022191,2]
[375111711,1753531847363,-436.34879778,0.00022191,2]
[375111713,1753531847373,-295.29107357,0.00022191,2]
[375111715,1753531847382,-469.28,0.00022191,2]
[375111717,1753531847391,-464.29,0.00022191,2]
[375111719,1753531847401,-560.94,0.00022191,2]
[375111721,1753531847410,-460.0,0.00022191,2]
[375111723,1753531847420,-203.0,0.00022192,7]
[375111725,1753531847429,-250.0,0.00022245,2]
[375111727,1753531847440,-361.0,0.00022266,2]
[375111729,1753531847449,-361.0,0.00022299,2]
[375111731,1753531847459,-549.11588717,0.00022383,2]
[375111733,1753531847468,-2196.46354869,0.00022383,2]
[375111735,1753531847477,-4937.10094156,0.00022383,2]
[375111737,1753531847487,-806.09192829,0.00022383,2]
[375111739,1753531847496,-3221.14334544,0.00022383,2]
[375111741,1753531847506,-157.6,0.00022463,5]
[375111743,1753531847515,-460.0,0.00022465,2]
[375111745,1753531847525,-2522.72,0.00022465,2]
[375111747,1753531847535,-1780.74,0.00022465,2]
[375111749,1753531847545,-538.95102404,0.00022465,2]
[375111751,1753531847555,-460.0,0.00022465,2]
[375111753,1753531847565,-1129.85,0.00022465,2]
[375111755,1753531847575,-1114.11,0.00022465,2]
[375111757,1753531847587,-938.14,0.00022465,2]
[375111759,1753531847596,-3069.1,0.00022465,2]
[375111761,1753531847606,-1134.75,0.00022465,2]
[375111763,1753531847616,-511.7946286,0.00022465,2]
[375111765,1753531847626,-992.67,0.00022465,2]
[375111767,1753531847635,-712.7,0.00022465,2]
[375111769,1753531847645,-571.85,0.00022465,2]
[375111771,1753531847654,-1186.03,0.00022465,2]
[375111773,1753531847664,-942.35,0.00022465,2]
[375111775,1753531847673,-460.0,0.00022465,2]
[375111777,1753531847683,-1067.06,0.00022465,2]
[375111779,1753531847693,-756.75,0.00022465,2]
[375111781,1753531847702,-666.55,0.00022465,2]
[375111783,1753531847711,-460.0,0.00022465,2]
[375111785,1753531847721,-599.82,0.00022465,2]
[375111787,1753531847731,-521.34454124,0.00022465,2]
[375111789,1753531847740,-758.82,0.00022465,2]
[375111791,1753531847750,-469.28,0.00022465,2]
[375111793,1753531847760,-464.29,0.00022465,2]
[375111796,1753531847771,-560.94,0.00022465,2]
[375111797,1753531847780,-460.0,0.00022465,2]
[375111799,1753531847790,-300.0,0.00022466,2]
[375111802,1753531847800,-859.3444225,0.00022481,2]
[375111803,1753531847809,-859.8112782,0.00022481,2]
[375111806,1753531847819,-250.8,0.000225,2]
[375111808,1753531847828,-560.0,0.00022602,2]
[375111810,1753531847838,-288.8775,0.00022603,2]
[375111812,1753531847849,-361.0,0.00022672,2]
[375111814,1753531847858,-361.0,0.00022717,2]
[375111816,1753531847868,-460.0,0.00022739,2]
[375111818,1753531847878,-2522.72,0.00022739,2]
[375111820,1753531847889,-460.0,0.00022739,2]
[375111822,1753531847904,-1129.85,0.00022739,2]
[375111834,1753531848003,-1114.11,0.00022739,2]
[375111836,1753531848012,-938.14,0.00022739,2]
[375111838,1753531848021,-3069.1,0.00022739,2]
[375111840,1753531848031,-1134.75,0.00022739,2]
[375111841,1753531848041,-992.67,0.00022739,2]
[375111844,1753531848051,-712.7,0.00022739,2]
[375111846,1753531848060,-571.85,0.00022739,2]
[375111848,1753531848069,-1186.03,0.00022739,2]
[375111849,1753531848079,-942.35,0.00022739,2]
[375111851,1753531848088,-460.0,0.00022739,2]
[375111854,1753531848098,-1067.06,0.00022739,2]
[375111855,1753531848107,-756.75,0.00022739,2]
[375111857,1753531848116,-666.55,0.00022739,2]
[375111859,1753531848126,-260.25231298,0.00022739,2]
[375111861,1753531848135,-599.82,0.00022739,2]
[375111863,1753531848145,-758.82,0.00022739,2]
[375111866,1753531848155,-469.28,0.00022739,2]
[375111868,1753531848165,-464.29,0.00022739,2]
[375111870,1753531848174,-560.94,0.00022739,2]
[375111871,1753531848184,-197.65615239,0.00022739,2]
[375111874,1753531848194,-152.0,0.00022754,3]
[375111875,1753531848203,-152.0,0.00022754,3]
[375111877,1753531848213,-152.0,0.00022754,3]
[375111879,1753531848223,-152.0,0.00022754,3]
[375111881,1753531848233,-152.0,0.00022754,3]
[375111883,1753531848242,-152.0,0.00022754,3]
[375111885,1753531848251,-152.0,0.00022754,3]
[375111887,1753531848260,-152.0,0.00022754,3]
[375111889,1753531848276,-152.0,0.00022754,3]
[375111891,1753531848286,-152.0,0.00022754,3]
[375111893,1753531848296,-324.0,0.00022754,3]
[375111895,1753531848306,-260.60872757,0.00022754,3]
[375111897,1753531848316,-500.0,0.0002283,2]
[375111899,1753531848326,-157.6,0.00022869,5]
[375111901,1753531848335,-361.0,0.00022871,2]
[375111903,1753531848344,-231.28369723,0.00022871,2]
[375111905,1753531848354,-318.2074684,0.00022887,2]
[375111907,1753531848363,-356.3491356,0.00022887,2]
[375111909,1753531848373,-1155.7430388,0.00022887,2]
[375111911,1753531848383,-611.45,0.00022899,6]
[375111913,1753531848392,-611.45,0.00022999,2]
[375111915,1753531848403,-361.0,0.00022999,2]
[375111917,1753531848418,-160.0,0.00023,2]
[375111919,1753531848428,-150.0,0.00023,7]
[375111921,1753531848437,-332.07391848,0.00023,2]
[375111923,1753531848447,-2522.72,0.00023013,2]
[375111925,1753531848464,-460.0,0.00023013,2]
[375111927,1753531848473,-1129.85,0.00023013,2]
[375111929,1753531848482,-1114.11,0.00023013,2]
[375111931,1753531848492,-938.14,0.00023013,2]
[375111933,1753531848501,-3069.1,0.00023013,2]
[375111935,1753531848511,-1134.75,0.00023013,2]
[375111937,1753531848520,-992.67,0.00023013,2]
[375111939,1753531848530,-712.7,0.00023013,2]
[375111941,1753531848539,-571.85,0.00023013,2]
[375111943,1753531848548,-1186.03,0.00023013,2]
[375111945,1753531848557,-942.35,0.00023013,2]
[375111947,1753531848566,-460.0,0.00023013,2]
[375111949,1753531848576,-1067.06,0.00023013,2]
[375111951,1753531848585,-756.75,0.00023013,2]
[375111953,1753531848594,-666.55,0.00023013,2]
[375111955,1753531848603,-599.82,0.00023013,2]
[375111957,1753531848612,-758.82,0.00023013,2]
[375111959,1753531848622,-469.28,0.00023013,2]
[375111961,1753531848631,-464.29,0.00023013,2]
[375111963,1753531848640,-560.94,0.00023013,2]
[375111965,1753531848651,-203.0,0.00023014,7]
[375111967,1753531848660,-250.8,0.00023039,2]
[375111969,1753531848669,-535.49,0.00023097,2]
[375111971,1753531848678,-611.45,0.00023099,4]
[375111973,1753531848688,-152.0,0.00023105,3]
[375111975,1753531848697,-152.0,0.00023105,3]
[375111977,1753531848706,-152.0,0.00023105,3]
[375111979,1753531848716,-152.0,0.00023105,3]
[375111981,1753531848725,-152.0,0.00023105,3]
[375111983,1753531848734,-152.0,0.00023105,3]
[375111985,1753531848743,-152.0,0.00023105,3]
[375111987,1753531848752,-152.0,0.00023105,3]
[375111989,1753531848761,-324.0,0.00023105,3]
[375111990,1753531848770,-152.0,0.00023105,3]
[375111992,1753531848779,-324.0,0.00023105,3]
[375111994,1753531848788,-152.0,0.00023105,3]
[375111996,1753531848797,-324.0,0.00023105,3]
[375111998,1753531848806,-152.0,0.00023105,3]
[375112000,1753531848816,-324.0,0.00023105,3]
[375112002,1753531848826,-152.0,0.00023105,3]
[375112005,1753531848835,-324.0,0.00023105,3]
[375112007,1753531848845,-152.0,0.00023105,3]
[375112009,1753531848854,-152.0,0.00023105,3]
[375112010,1753531848863,-152.0,0.00023105,3]
[375112012,1753531848872,-152.0,0.00023105,3]
[375112014,1753531848882,-152.0,0.00023105,3]
[375112016,1753531848891,-152.0,0.00023105,3]
[375112018,1753531848901,-152.0,0.00023105,3]
[375112020,1753531848911,-152.0,0.00023105,3]
[375112022,1753531848920,-152.0,0.00023105,3]
[375112024,1753531848930,-152.0,0.00023105,3]
[375112026,1753531848939,-152.0,0.00023105,3]
[375112029,1753531848949,-152.0,0.00023105,3]
[375112031,1753531848959,-152.0,0.00023105,3]
[375112033,1753531848968,-152.0,0.00023105,3]
[375112035,1753531848976,-152.0,0.00023105,3]
[375112037,1753531848986,-152.0,0.00023105,3]
[375112038,1753531848995,-152.0,0.00023105,3]
[375112041,1753531849004,-152.0,0.00023105,3]
[375112042,1753531849014,-152.0,0.00023105,3]
[375112044,1753531849023,-152.0,0.00023105,3]
[375112046,1753531849032,-152.0,0.00023105,3]
[375112048,1753531849041,-152.0,0.00023105,3]
[375112050,1753531849050,-152.0,0.00023105,3]
[375112052,1753531849059,-177.319409,0.00023105,3]
[375112054,1753531849068,-660.0,0.0002315,2]
[375112056,1753531849077,-361.0,0.00023164,2]
[375112058,1753531849086,-611.46,0.00023199,7]
[375112060,1753531849096,-361.0,0.00023208,2]
[375112062,1753531849105,-193.07,0.00023269,2]
[375112064,1753531849115,-501.69698606,0.00023273,2]
[375112066,1753531849124,-157.6,0.00023275,6]
[375112068,1753531849134,-1754.0,0.00023287,3]
[375112070,1753531849144,-1754.0,0.00023287,3]
[375112072,1753531849154,-1754.0,0.00023287,3]
[375112074,1753531849164,-1754.0,0.00023287,3]
[375112076,1753531849173,-1754.0,0.00023287,3]
[375112078,1753531849182,-1754.0,0.00023287,3]
[375112080,1753531849192,-1754.0,0.00023287,3]
[375112082,1753531849202,-1754.0,0.00023287,3]
[375112084,1753531849211,-1754.0,0.00023287,3]
[375112086,1753531849221,-1754.0,0.00023287,3]
[375112088,1753531849230,-1754.0,0.00023287,3]
[375112090,1753531849240,-1754.0,0.00023287,3]
[375112092,1753531849250,-1754.0,0.00023287,3]
[375112094,1753531849259,-1754.0,0.00023287,3]
[375112096,1753531849271,-1754.0,0.00023287,3]
[375112098,1753531849280,-1754.0,0.00023287,3]
[375112100,1753531849290,-1754.0,0.00023287,3]
[375112102,1753531849299,-241.87670541,0.00023287,2]
[375112104,1753531849308,-2522.72,0.00023287,2]
[375112106,1753531849319,-460.0,0.00023287,2]
[375112108,1753531849328,-1129.85,0.00023287,2]
[375112110,1753531849337,-1114.11,0.00023287,2]
[375112112,1753531849348,-938.14,0.00023287,2]
[375112114,1753531849358,-3069.1,0.00023287,2]
[375112116,1753531849367,-1134.75,0.00023287,2]
[375112118,1753531849377,-992.67,0.00023287,2]
[375112120,1753531849386,-712.7,0.00023287,2]
[375112122,1753531849395,-571.85,0.00023287,2]
[375112124,1753531849405,-1186.03,0.00023287,2]
[375112126,1753531849414,-942.35,0.00023287,2]
[375112128,1753531849423,-460.0,0.00023287,2]
[375112130,1753531849432,-1067.06,0.00023287,2]
[375112132,1753531849441,-756.75,0.00023287,2]
[375112134,1753531849451,-666.55,0.00023287,2]
[375112136,1753531849460,-599.82,0.00023287,2]
[375112138,1753531849469,-758.82,0.00023287,2]
[375112140,1753531849480,-469.28,0.00023287,2]
[375112141,1753531849489,-464.29,0.00023287,2]
[375112143,1753531849498,-560.94,0.00023287,2]
[375112145,1753531849507,-361.0,0.00023289,2]
[375112147,1753531849516,-160.0,0.0002329,3]
[375112149,1753531849525,-526.41699184,0.0002329,3]
[375112151,1753531849534,-840.57612966,0.0002329,3]
[375112153,1753531849543,-215.9757969,0.0002329,3]
[375112155,1753531849553,-160.0,0.0002329,3]
[375112158,1753531849562,-312.16666667,0.0002329,3]
[375112160,1753531849571,-160.0,0.0002329,3]
[375112161,1753531849582,-214.8008262,0.0002329,3]
[375112164,1753531849591,-160.0,0.0002329,3]
[375112166,1753531849601,-476.98041219,0.0002329,3]
[375112167,1753531849610,-12629.83479014,0.0002329,3]
[375112169,1753531849619,-231.25662632,0.0002329,3]
[375112172,1753531849630,-360.0,0.00023293,2]
[375112173,1753531849639,-361.0,0.00023304,2]
[375112175,1753531849649,-360.0,0.00023317,2]
[375112177,1753531849658,-566.46,0.00023328,7]
[375112179,1753531849667,-360.0,0.00023354,2]
[375112181,1753531849676,-283.768864,0.00023358,8]
[375112183,1753531849687,-566.47,0.00023428,5]
[375112185,1753531849699,-361.0,0.00023453,2]
[375112187,1753531849707,-1160.91,0.000235,7]
[375112189,1753531849716,-360.0,0.00023516,2]
[375112191,1753531849726,-360.0,0.00023528,2]
[375112193,1753531849736,-361.0,0.00023554,2]
[375112195,1753531849746,-250.8,0.00023558,2]
[375112197,1753531849755,-2522.72,0.00023561,2]
[375112199,1753531849764,-460.0,0.00023561,2]
[375112201,1753531849775,-1129.85,0.00023561,2]
[375112203,1753531849786,-1114.11,0.00023561,2]
[375112205,1753531849795,-938.14,0.00023561,2]
[375112207,1753531849804,-3069.1,0.00023561,2]
[375112209,1753531849814,-1134.75,0.00023561,2]
[375112211,1753531849824,-992.67,0.00023561,2]
[375112213,1753531849833,-712.7,0.00023561,2]
[375112215,1753531849842,-571.85,0.00023561,2]
[375112217,1753531849851,-1186.03,0.00023561,2]
[375112219,1753531849861,-942.35,0.00023561,2]
[375112221,1753531849872,-531.78597822,0.00023561,2]
[375112223,1753531849881,-1067.06,0.00023561,2]
[375112225,1753531849890,-756.75,0.00023561,2]
[375112227,1753531849900,-666.55,0.00023561,2]
[375112229,1753531849910,-599.82,0.00023561,2]
[375112231,1753531849919,-758.82,0.00023561,2]
[375112233,1753531849934,-469.28,0.00023561,2]
[375112235,1753531849944,-464.29,0.00023561,2]
[375112237,1753531849954,-560.94,0.00023561,2]
[375112239,1753531849963,-151.0,0.00023562,2]
[375112241,1753531849972,-151.0,0.00023562,2]
[375112243,1753531849982,-151.0,0.00023562,2]
[375112245,1753531849991,-151.0,0.00023562,2]
[375112247,1753531850000,-151.0,0.00023562,2]
[375112249,1753531850009,-151.0,0.00023562,2]
[375112251,1753531850018,-248.21941893,0.00023562,2]
[375112253,1753531850028,-151.0,0.00023562,2]
[375112255,1753531850037,-151.0,0.00023562,2]
[375112257,1753531850048,-151.0,0.00023562,2]
[375112259,1753531850060,-151.0,0.00023562,2]
[375112261,1753531850069,-151.0,0.00023562,2]
[375112263,1753531850078,-151.0,0.00023562,2]
[375112266,1753531850088,-151.0,0.00023562,2]
[375112267,1753531850097,-151.0,0.00023562,2]
[375112269,1753531850106,-151.0,0.00023562,2]
[375112271,1753531850115,-151.0,0.00023562,2]
[375112273,1753531850124,-151.00525167,0.00023562,2]
[375112275,1753531850134,-151.0,0.00023562,2]
[375112277,1753531850143,-300.48934009,0.00023562,2]
[375112279,1753531850152,-151.0,0.00023562,2]
[375112281,1753531850161,-500.0,0.00023562,2]
[375112283,1753531850171,-151.0,0.00023562,2]
[375112285,1753531850180,-151.0,0.00023562,2]
[375112287,1753531850189,-151.0,0.00023562,2]
[375112289,1753531850199,-151.0,0.00023562,2]
[375112291,1753531850208,-151.0,0.00023562,2]
[375112293,1753531850217,-685.0,0.00023562,2]
[375112295,1753531850226,-360.0,0.00023623,2]
[375112297,1753531850236,-360.0,0.0002367,2]
[375112299,1753531850245,-157.6,0.00023682,6]
[375112301,1753531850254,-760.0,0.00023698,2]
[375112312,1753531850346,-151.0,0.000237,9]
[375112314,1753531850357,-151.0,0.000237,10]
[375112315,1753531850366,-361.0,0.00023708,2]
[375112317,1753531850375,-307.6429418,0.00023714,2]
[375112320,1753531850385,-154.2133676,0.00023714,2]
[375112321,1753531850394,-319.9714731,0.00023718,2]
[375112324,1753531850404,-996.4579348,0.00023718,2]
[375112326,1753531850413,-577.8715194,0.00023718,2]
[375112328,1753531850423,-577.8715194,0.00023718,2]
[375112330,1753531850432,-857.93313,0.000238,5]
[375112331,1753531850441,-2522.72,0.00023835,2]
[375112333,1753531850450,-460.0,0.00023835,2]
[375112336,1753531850460,-1129.85,0.00023835,2]
[375112337,1753531850471,-1114.11,0.00023835,2]
[375112339,1753531850480,-938.14,0.00023835,2]
[375112341,1753531850490,-3069.1,0.00023835,2]
[375112343,1753531850499,-1134.75,0.00023835,2]
[375112345,1753531850508,-992.67,0.00023835,2]
[375112347,1753531850517,-712.7,0.00023835,2]
[375112349,1753531850526,-571.85,0.00023835,2]
[375112351,1753531850536,-1186.03,0.00023835,2]
[375112353,1753531850545,-942.35,0.00023835,2]
[375112355,1753531850554,-1067.06,0.00023835,2]
[375112357,1753531850564,-756.75,0.00023835,2]
[375112359,1753531850573,-666.55,0.00023835,2]
[375112361,1753531850583,-599.82,0.00023835,2]
[375112363,1753531850593,-758.82,0.00023835,2]
[375112365,1753531850603,-469.28,0.00023835,2]
[375112367,1753531850612,-464.29,0.00023835,2]
[375112369,1753531850623,-560.94,0.00023835,2]
[375112371,1753531850632,-151.0,0.00023836,2]
[375112373,1753531850641,-151.0,0.00023836,2]
[375112375,1753531850650,-151.92336044,0.00023836,2]
[375112377,1753531850659,-151.0,0.00023836,2]
[375112379,1753531850668,-151.05000522,0.00023836,2]
[375112381,1753531850677,-151.0,0.00023836,2]
[375112383,1753531850687,-151.0,0.00023836,2]
[375112385,1753531850696,-151.0,0.00023836,2]
[375112387,1753531850705,-151.0,0.00023836,2]
[375112389,1753531850714,-151.0,0.00023836,2]
[375112390,1753531850723,-151.0,0.00023836,2]
[375112392,1753531850732,-151.0,0.00023836,2]
[375112394,1753531850742,-151.28167398,0.00023836,2]
[375112396,1753531850751,-151.0,0.00023836,2]
[375112398,1753531850761,-151.0,0.00023836,2]
[375112400,1753531850770,-500.0,0.00023836,2]
[375112402,1753531850779,-151.0,0.00023836,2]
[375112404,1753531850789,-151.0,0.00023836,2]
[375112405,1753531850798,-685.0,0.00023836,2]
[375112406,1753531850807,-361.0,0.00023845,2]
[375112407,1753531850816,-361.0,0.00023864,2]
[375112408,1753531850825,-852.91,0.00023886,4]
[375112409,1753531850834,-152.25127158,0.000239,2]
[375112410,1753531850843,-643.0,0.000239,2]
[375112411,1753531850852,-500.0,0.00023973,2]
[375112412,1753531850862,-852.91,0.00023986,6]
[375112413,1753531850871,-5000.0,0.0002399,2]
[375112414,1753531850880,-160.0,0.00024,7]
[375112415,1753531850889,-160.0,0.00024,7]
[375112416,1753531850899,-24083.54548457,0.00024,2]
[375112417,1753531850974,-12127.10451543,0.00024,2]
[375112418,1753531850983,-2785.73573917,0.00024,2]
[375112419,1753531850994,-500.0,0.00024027,30]
[375112420,1753531851003,-3294.57221227,0.00024069,2]
[375112421,1753531851014,-1720.91713282,0.00024069,2]
[375112422,1753531851024,-250.8,0.00024078,2]
[375112423,1753531851033,-852.91,0.00024086,7]
[375112424,1753531851042,-157.6,0.00024088,6]
[375112426,1753531851052,-2522.44056344,0.000241,7]
[375112434,1753531851127,-460.0,0.00019178,2]
[375112436,1753531851136,-282.66688904,0.00022639,2]
[375112438,1753531851146,-1625.30943656,0.000241,7]
[375112440,1753531851156,-526.41699184,0.000241,7]
[375112442,1753531851165,-4.71436916,0.000241,7]
[375112445,1753531851177,-211.26142774,0.000241,7]
[375112447,1753531851187,-160.0,0.000241,7]
[375112448,1753531851197,-312.16666667,0.000241,7]
[375112450,1753531851206,-160.0,0.000241,7]
[375112453,1753531851216,-27.18421899,0.000241,7]
[375112455,1753531851227,-187.61660721,0.000241,7]
[375112457,1753531851237,-160.0,0.000241,7]
[375112459,1753531851246,-112.38339279,0.000241,7]
[375112465,1753531851304,-460.0,0.00019178,2]
[375112467,1753531851315,-68.90102382,0.00023735,2]
[375112480,1753531851436,-213.76586522,0.00023735,2]
[375112482,1753531851446,-364.5970194,0.000241,7]
[375112484,1753531851455,-12629.83479014,0.000241,7]
[375112486,1753531851465,-231.25662632,0.000241,7]
[375112488,1753531851474,-2522.72,0.00024109,2]
[375112490,1753531851483,-460.0,0.00024109,2]
[375112492,1753531851493,-1129.85,0.00024109,2]
[375112494,1753531851502,-1114.11,0.00024109,2]
[375112496,1753531851512,-938.14,0.00024109,2]
[375112498,1753531851521,-1113.34457475,0.00024109,2]
[375112500,1753531851532,-500.0,0.00024109,2]
[375112503,1753531851544,-1455.75542525,0.00024109,2]
[375112505,1753531851553,-1024.2292514,0.00024109,2]
[375114068,1753532731106,-460.16191848,0.0001748,2]
[375114079,1753532825087,-525.20261284,0.0001748,2]
[375114080,1753532840071,-528.76071221,0.0001748,2]
[375114088,1753532957073,-3361.87752093,0.0001748,2]
[375114095,1753532975292,159.906694,0.00013699,2]
[375114140,1753533032644,-123.99723554,0.0001748,2]
[375114142,1753533032655,-150.0,0.000189,2]
[375114143,1753533032664,-300.0,0.00019177,2]
[375114144,1753533032675,-460.0,0.00019178,2]
[375114145,1753533032685,-32.49056498,0.00019178,2]
[375114202,1753533038538,-302.66710251,0.000189,2]
[375114204,1753533038549,-302.66710251,0.00019089,2]
[375114206,1753533038559,-460.0,0.00019178,2]
[375114208,1753533038568,-460.0,0.00019178,2]
[375114210,1753533038578,-460.0,0.00019178,2]
[375114212,1753533038588,-431.28408128,0.00019178,2]
[375114214,1753533038598,-460.0,0.00019178,2]
[375114216,1753533038607,-460.0,0.00019178,2]
[375114218,1753533038617,-460.0,0.00019178,2]
[375114220,1753533038627,-460.0,0.00019178,2]
[375114222,1753533038636,-460.0,0.00019178,2]
[375114224,1753533038646,-460.0,0.00019178,2]
[375114226,1753533038656,-460.0,0.00019178,2]
[375114228,1753533038665,-460.0,0.00019178,2]
[375114230,1753533038675,-460.0,0.00019178,2]
[375114232,1753533038686,-460.0,0.00019178,2]
[375114234,1753533038696,-576.14,0.00019178,2]
[375114236,1753533038706,-460.0,0.00019178,2]
[375114238,1753533038716,-460.0,0.00019178,2]
[375114240,1753533038726,-460.0,0.00019178,2]
[375114242,1753533038735,-460.0,0.00019178,2]
[375114244,1753533038745,-397.57567652,0.00019178,2]
[375114246,1753533038755,-460.0,0.00019178,2]
[375114248,1753533038765,-564.0,0.00019178,2]
[375114250,1753533038774,-460.0,0.00019178,2]
[375114252,1753533038784,-460.0,0.00019178,2]
[375114254,1753533038794,-460.0,0.00019178,2]
[375114256,1753533038804,-460.0,0.00019178,2]
[375114258,1753533038813,-460.0,0.00019178,2]
[375114260,1753533038822,-460.0,0.00019178,2]
[375114262,1753533038831,-460.0,0.00019178,2]
[375114264,1753533038840,-460.0,0.00019178,2]
[375114266,1753533038850,-460.0,0.00019178,2]
[375114268,1753533038861,-460.0,0.00019178,2]
[375114270,1753533038871,-151.0,0.00019178,2]
[375114272,1753533038881,-460.0,0.00019178,2]
[375114274,1753533038890,-460.0,0.00019178,2]
[375114276,1753533038900,-2412.0,0.00019178,2]
[375114278,1753533038909,-460.0,0.00019178,2]
[375114280,1753533038918,-1340.09,0.00019178,2]
[375114282,1753533038927,-460.0,0.00019178,2]
[375114284,1753533038937,-460.0,0.00019178,2]
[375114286,1753533038947,-460.0,0.00019178,2]
[375114288,1753533038957,-460.0,0.00019178,2]
[375114290,1753533038971,-460.0,0.00019178,2]
[375114292,1753533038980,-460.0,0.00019178,2]
[375114293,1753533038990,-460.0,0.00019178,2]
[375114295,1753533039000,-460.0,0.00019178,2]
[375114297,1753533039011,-1181.35,0.00019178,2]
[375114299,1753533039026,-985.33,0.00019178,2]
[375114301,1753533039035,-460.0,0.00019178,2]
[375114303,1753533039045,-151.0,0.00019178,2]
[375114305,1753533039055,-460.0,0.00019178,2]
[375114307,1753533039064,-460.0,0.00019178,2]
[375114309,1753533039073,-460.0,0.00019178,2]
[375114311,1753533039085,-460.0,0.00019178,2]
[375114313,1753533039095,-460.96981304,0.00019178,2]
[375114315,1753533039104,-540.25462415,0.00019178,2]
[375114317,1753533039113,-460.0,0.00019178,2]
[375114319,1753533039122,-460.0,0.00019178,2]
[375114321,1753533039132,-460.0,0.00019178,2]
[375114323,1753533039141,-460.0,0.00019178,2]
[375114325,1753533039151,-460.0,0.00019178,2]
[375114327,1753533039161,-761.41,0.00019178,2]
[375114329,1753533039171,-460.0,0.00019178,2]
[375114331,1753533039181,-460.0,0.00019178,2]
[375114333,1753533039192,-460.0,0.00019178,2]
[375114335,1753533039202,-460.0,0.00019178,2]
[375114337,1753533039212,-460.0,0.00019178,2]
[375114339,1753533039222,-460.0,0.00019178,2]
[375114341,1753533039232,-460.0,0.00019178,2]
[375114343,1753533039242,-460.0,0.00019178,2]
[375114345,1753533039251,-460.0,0.00019178,2]
[375114347,1753533039261,-460.0,0.00019178,2]
[375114349,1753533039270,-1022.6,0.00019178,2]
[375114350,1753533039280,-460.0,0.00019178,2]
[375114353,1753533039290,-460.0,0.00019178,2]
[375114354,1753533039299,-460.0,0.00019178,2]
[375114355,1753533039309,-460.0,0.00019178,2]
[375114356,1753533039319,-460.0,0.00019178,2]
[375114357,1753533039328,-460.0,0.00019178,2]
[375114358,1753533039338,-460.0,0.00019178,2]
[375114359,1753533039347,-460.0,0.00019178,2]
[375114360,1753533039357,-460.0,0.00019178,2]
[375114361,1753533039367,-460.0,0.00019178,2]
[375114362,1753533039376,-460.0,0.00019178,2]
[375114363,1753533039386,-460.0,0.00019178,2]
[375114364,1753533039396,-460.0,0.00019178,2]
[375114365,1753533039524,-460.0,0.00019178,2]
[375114366,1753533039535,-460.0,0.00019178,2]
[375114367,1753533039544,-460.0,0.00019178,2]
[375114368,1753533039554,-151.0,0.00019178,2]
[375114369,1753533039563,-460.0,0.00019178,2]
[375114370,1753533039573,-460.0,0.00019178,2]
[375114371,1753533039582,-460.0,0.00019178,2]
[375114372,1753533039591,-151.0,0.00019178,2]
[375114373,1753533039601,-460.0,0.00019178,2]
[375114374,1753533039611,-460.0,0.00019178,2]
[375114375,1753533039620,-231.102,0.00019178,2]
[375114377,1753533039629,-302.66710251,0.00019278,2]